[Event "Early-Titled-Tuesday-Blitz-December-26-2023"]
[Site "Chess.com"]
[Date "2023.12.26"]
[Round "1"]
[White "viviania"]
[Black "Herzog2012"]
[Result "0-1"]
[WhiteElo "2846"]
[BlackElo "2532"]
[TimeControl "180+1"]
[EndTime "8:08:36 PST"]
[Termination "Herzog2012 won on time"]

1. d4 {[%clk 0:02:59.3]} 1... Nf6 {[%clk 0:02:59.4]} 2. Nf3 {[%clk 0:02:59.3]}
2... e6 {[%clk 0:02:59.4]} 3. Bg5 {[%clk 0:02:58.6]} 3... c5 {[%clk 0:02:57.1]}
4. e3 {[%clk 0:02:58.5]} 4... b6 {[%clk 0:02:54.1]} 5. c3 {[%clk 0:02:54.6]}
5... Bb7 {[%clk 0:02:53.5]} 6. Nbd2 {[%clk 0:02:54.7]} 6... h6 {[%clk
0:02:40.3]} 7. Bh4 {[%clk 0:02:53.8]} 7... Be7 {[%clk 0:02:39.1]} 8. Bd3 {[%clk
0:02:52.9]} 8... cxd4 {[%clk 0:02:36.2]} 9. exd4 {[%clk 0:02:52.3]} 9... Ba6
{[%clk 0:02:35.5]} 10. Bxa6 {[%clk 0:02:35.9]} 10... Nxa6 {[%clk 0:02:36.4]} 11.
O-O {[%clk 0:02:35.8]} 11... O-O {[%clk 0:02:35.3]} 12. Re1 {[%clk 0:02:35.8]}
12... Nc7 {[%clk 0:02:35.3]} 13. Ne5 {[%clk 0:02:34.6]} 13... Nfd5 {[%clk
0:02:22]} 14. Bg3 {[%clk 0:02:32.9]} 14... Bf6 {[%clk 0:01:56.3]} 15. Ne4 {[%clk
0:02:26.6]} 15... d6 {[%clk 0:01:47.3]} 16. Nc4 {[%clk 0:02:13.7]} 16... Be7
{[%clk 0:01:34.8]} 17. Nexd6 {[%clk 0:01:49.4]} 17... b5 {[%clk 0:01:28.5]} 18.
Nb7 {[%clk 0:01:49.4]} 18... Qc8 {[%clk 0:01:18.1]} 19. Ncd6 {[%clk 0:01:41.7]}
19... Qd7 {[%clk 0:01:07.4]} 20. Nc5 {[%clk 0:01:40]} 20... Qc6 {[%clk
0:01:07.4]} 21. Nde4 {[%clk 0:01:37.9]} 21... f5 {[%clk 0:01:05.6]} 22. Bxc7
{[%clk 0:01:36.8]} 22... Nxc7 {[%clk 0:01:00.9]} 23. Nd2 {[%clk 0:01:36.9]}
23... Bxc5 {[%clk 0:00:59.2]} 24. dxc5 {[%clk 0:01:37.1]} 24... Qxc5 {[%clk
0:00:37.6]} 25. Nb3 {[%clk 0:01:37.2]} 25... Qb6 {[%clk 0:00:29.7]} 26. Re5
{[%clk 0:01:34.2]} 26... Rad8 {[%clk 0:00:22.8]} 27. Qe2 {[%clk 0:01:34]} 27...
Rfe8 {[%clk 0:00:21.5]} 28. Re1 {[%clk 0:01:29]} 28... Rd5 {[%clk 0:00:18]} 29.
Nd4 {[%clk 0:01:17.2]} 29... Qd6 {[%clk 0:00:08.4]} 30. h3 {[%clk 0:00:46.3]}
30... b4 {[%clk 0:00:05.2]} 31. Rxd5 {[%clk 0:00:37.4]} 31... Qxd5 {[%clk
0:00:06.1]} 32. Qe5 {[%clk 0:00:37.6]} 32... Qxe5 {[%clk 0:00:05.4]} 33. Rxe5
{[%clk 0:00:37.7]} 33... bxc3 {[%clk 0:00:06.3]} 34. bxc3 {[%clk 0:00:38]} 34...
Kf7 {[%clk 0:00:04.4]} 35. Ra5 {[%clk 0:00:35.6]} 35... a6 {[%clk 0:00:03.8]}
36. Rc5 {[%clk 0:00:32.6]} 36... Nd5 {[%clk 0:00:04.1]} 37. Nxf5 {[%clk
0:00:30.6]} 37... exf5 {[%clk 0:00:03.5]} 38. Rxd5 {[%clk 0:00:30.3]} 38... Re1+
{[%clk 0:00:04.1]} 39. Kh2 {[%clk 0:00:30]} 39... g6 {[%clk 0:00:03.7]} 40. Rd7+
{[%clk 0:00:24.6]} 40... Kf6 {[%clk 0:00:03.1]} 41. Rd6+ {[%clk 0:00:23.6]}
41... Kg5 {[%clk 0:00:03.8]} 42. Rxa6 {[%clk 0:00:21]} 42... Rc1 {[%clk
0:00:04.4]} 43. Ra3 {[%clk 0:00:16.7]} 43... Rc2 {[%clk 0:00:04.4]} 44. Kg3
{[%clk 0:00:16.7]} 44... h5 {[%clk 0:00:04]} 45. h4+ {[%clk 0:00:16.3]} 45...
Kh6 {[%clk 0:00:03.2]} 46. f3 {[%clk 0:00:16.1]} 46... Kg7 {[%clk 0:00:03.2]}
47. Ra7+ {[%clk 0:00:15.3]} 47... Kf6 {[%clk 0:00:03.5]} 48. a4 {[%clk
0:00:14.7]} 48... Rxc3 {[%clk 0:00:03.4]} 49. a5 {[%clk 0:00:14.8]} 49... Ra3
{[%clk 0:00:04.1]} 50. Ra8 {[%clk 0:00:14.2]} 50... Ra4 {[%clk 0:00:04.6]} 51.
a6 {[%clk 0:00:12.1]} 51... f4+ {[%clk 0:00:05.1]} 52. Kf2 {[%clk 0:00:11.8]}
52... Ra2+ {[%clk 0:00:05.2]} 53. Ke1 {[%clk 0:00:10.4]} 53... Kg7 {[%clk
0:00:03.7]} 54. a7 {[%clk 0:00:09.3]} 54... Ra3 {[%clk 0:00:02.6]} 55. Kd2
{[%clk 0:00:09.1]} 55... Kh7 {[%clk 0:00:03.2]} 56. Kc2 {[%clk 0:00:08.7]} 56...
Kg7 {[%clk 0:00:03.7]} 57. Kb2 {[%clk 0:00:08.8]} 57... Ra6 {[%clk 0:00:03.7]}
58. Kc3 {[%clk 0:00:08.5]} 58... Ra1 {[%clk 0:00:04.1]} 59. Kd4 {[%clk
0:00:08.4]} 59... Ra4+ {[%clk 0:00:04.1]} 60. Ke5 {[%clk 0:00:08.4]} 60... Kh7
{[%clk 0:00:04.1]} 61. Kf6 {[%clk 0:00:07.1]} 61... Ra6+ {[%clk 0:00:04]} 62.
Kg5 {[%clk 0:00:06.1]} 62... Ra4 {[%clk 0:00:04.6]} 0-1

[Event "Early-Titled-Tuesday-Blitz-December-26-2023"]
[Site "Chess.com"]
[Date "2023.12.26"]
[Round "1"]
[White "bolwin"]
[Black "Sadykov_Ramil"]
[Result "0-1"]
[WhiteElo "2254"]
[BlackElo "2607"]
[TimeControl "180+1"]
[EndTime "8:08:54 PST"]
[Termination "Sadykov_Ramil won on time"]

1. Nf3 {[%clk 0:02:59.4]} 1... Nf6 {[%clk 0:02:57.7]} 2. c4 {[%clk 0:02:59]}
2... e6 {[%clk 0:02:57.3]} 3. Nc3 {[%clk 0:02:58.8]} 3... d5 {[%clk 0:02:55.6]}
4. d4 {[%clk 0:02:58.3]} 4... a6 {[%clk 0:02:48.1]} 5. cxd5 {[%clk 0:02:57.2]}
5... exd5 {[%clk 0:02:47.9]} 6. Bg5 {[%clk 0:02:57.4]} 6... Be7 {[%clk
0:02:46.1]} 7. Qc2 {[%clk 0:02:57.6]} 7... g6 {[%clk 0:02:40]} 8. e3 {[%clk
0:02:55.1]} 8... Bf5 {[%clk 0:02:39.3]} 9. Bd3 {[%clk 0:02:55.5]} 9... Bxd3
{[%clk 0:02:37.1]} 10. Qxd3 {[%clk 0:02:56.2]} 10... O-O {[%clk 0:02:36]} 11.
O-O {[%clk 0:02:50.1]} 11... Re8 {[%clk 0:02:36.1]} 12. Rac1 {[%clk 0:02:49.6]}
12... Nbd7 {[%clk 0:02:28.9]} 13. Rfd1 {[%clk 0:02:49.5]} 13... c6 {[%clk
0:02:23.4]} 14. a3 {[%clk 0:02:44.6]} 14... a5 {[%clk 0:02:19.2]} 15. Qb1 {[%clk
0:02:19]} 15... a4 {[%clk 0:02:11]} 16. Qc2 {[%clk 0:01:59.8]} 16... Qa5 {[%clk
0:02:08.7]} 17. h3 {[%clk 0:01:53.7]} 17... Ne4 {[%clk 0:01:41.6]} 18. Bxe7
{[%clk 0:01:38.3]} 18... Rxe7 {[%clk 0:01:42.5]} 19. Ne2 {[%clk 0:01:15]} 19...
Nd6 {[%clk 0:01:34.4]} 20. Nf4 {[%clk 0:01:11.5]} 20... Nc4 {[%clk 0:01:31.2]}
21. Nd3 {[%clk 0:01:10.7]} 21... h5 {[%clk 0:01:20.3]} 22. Qc3 {[%clk
0:01:09.6]} 22... Qxc3 {[%clk 0:01:10.6]} 23. Rxc3 {[%clk 0:01:09.3]} 23... Kf8
{[%clk 0:01:08.6]} 24. Rc2 {[%clk 0:01:07.2]} 24... b5 {[%clk 0:01:01.7]} 25.
Nb4 {[%clk 0:00:59.9]} 25... Rc8 {[%clk 0:00:49.7]} 26. Nd2 {[%clk 0:00:57]}
26... Ndb6 {[%clk 0:00:47.4]} 27. Nd3 {[%clk 0:00:50.6]} 27... Nxd2 {[%clk
0:00:44.5]} 28. Rdxd2 {[%clk 0:00:48.2]} 28... Nc4 {[%clk 0:00:45.4]} 29. Rd1
{[%clk 0:00:48]} 29... h4 {[%clk 0:00:44.6]} 30. Nb4 {[%clk 0:00:41.2]} 30...
Re6 {[%clk 0:00:36.9]} 31. Nd3 {[%clk 0:00:40.2]} 31... g5 {[%clk 0:00:34.1]}
32. Rdc1 {[%clk 0:00:38.6]} 32... Ke7 {[%clk 0:00:32.1]} 33. Rc3 {[%clk
0:00:38.3]} 33... Kd6 {[%clk 0:00:31.9]} 34. R3c2 {[%clk 0:00:31.8]} 34... Rg8
{[%clk 0:00:25.6]} 35. Nc5 {[%clk 0:00:31.1]} 35... Reg6 {[%clk 0:00:23.7]} 36.
Kf1 {[%clk 0:00:30.6]} 36... g4 {[%clk 0:00:17.4]} 37. Ke2 {[%clk 0:00:28.7]}
37... gxh3 {[%clk 0:00:14.6]} 38. gxh3 {[%clk 0:00:29.2]} 38... Rg2 {[%clk
0:00:15]} 39. Rh1 {[%clk 0:00:24.6]} 39... f5 {[%clk 0:00:14.4]} 40. Nd3 {[%clk
0:00:24]} 40... Rg1 {[%clk 0:00:12.9]} 41. Rc1 {[%clk 0:00:22]} 41... R1g7
{[%clk 0:00:07.2]} 42. Nf4 {[%clk 0:00:16.8]} 42... Rg5 {[%clk 0:00:06.7]} 43.
Nd3 {[%clk 0:00:15.7]} 43... R5g7 {[%clk 0:00:06.9]} 44. Nf4 {[%clk 0:00:15.4]}
44... Rg5 {[%clk 0:00:03.2]} 45. Nd3 {[%clk 0:00:15.6]} 45... R8g7 {[%clk
0:00:03.3]} 46. Rcf1 {[%clk 0:00:15.6]} 46... Rg8 {[%clk 0:00:02.2]} 47. Ra1
{[%clk 0:00:14.3]} 47... f4 {[%clk 0:00:01.9]} 48. Nxf4 {[%clk 0:00:13]} 48...
Nxb2 {[%clk 0:00:01.8]} 49. Nd3 {[%clk 0:00:07.9]} 49... Nc4 {[%clk 0:00:02.2]}
50. Ra2 {[%clk 0:00:07.3]} 50... Rf8 {[%clk 0:00:02.2]} 51. Nf4 {[%clk
0:00:06.6]} 51... Rgf5 {[%clk 0:00:02.3]} 52. Kd3 {[%clk 0:00:05.8]} 52... Rxf4
{[%clk 0:00:02.3]} 53. exf4 {[%clk 0:00:05.7]} 53... Rxf4 {[%clk 0:00:03.2]} 54.
Rg1 {[%clk 0:00:06.2]} 54... Rf3+ {[%clk 0:00:03.4]} 55. Ke2 {[%clk 0:00:05.4]}
55... Rxh3 {[%clk 0:00:03.9]} 56. Rg6+ {[%clk 0:00:05.5]} 56... Kc7 {[%clk
0:00:04]} 57. Rh6 {[%clk 0:00:05.2]} 57... Rxa3 {[%clk 0:00:03.7]} 0-1

[Event "Early-Titled-Tuesday-Blitz-December-26-2023"]
[Site "Chess.com"]
[Date "2023.12.26"]
[Round "1"]
[White "sokidze"]
[Black "Pakarma"]
[Result "1-0"]
[WhiteElo "2786"]
[BlackElo "2461"]
[TimeControl "180+1"]
[EndTime "8:08:56 PST"]
[Termination "sokidze won by checkmate"]

1. d4 {[%clk 0:03:00.9]} 1... Nf6 {[%clk 0:02:58.9]} 2. c4 {[%clk 0:03:00.9]}
2... d6 {[%clk 0:02:58.7]} 3. Nf3 {[%clk 0:03:00.3]} 3... g6 {[%clk 0:02:57.8]}
4. g3 {[%clk 0:02:59.5]} 4... Bg7 {[%clk 0:02:57.3]} 5. Bg2 {[%clk 0:03:00.2]}
5... O-O {[%clk 0:02:57.6]} 6. O-O {[%clk 0:03:00.8]} 6... Nbd7 {[%clk
0:02:57.1]} 7. Nc3 {[%clk 0:03:00.9]} 7... a6 {[%clk 0:02:57.7]} 8. e4 {[%clk
0:02:52.6]} 8... e5 {[%clk 0:02:56.4]} 9. Re1 {[%clk 0:02:47.4]} 9... exd4
{[%clk 0:02:54.3]} 10. Nxd4 {[%clk 0:02:47.3]} 10... Ng4 {[%clk 0:02:54.7]} 11.
h3 {[%clk 0:02:33.5]} 11... Qf6 {[%clk 0:02:50]} 12. hxg4 {[%clk 0:02:06.8]}
12... Qxd4 {[%clk 0:02:45.5]} 13. Qxd4 {[%clk 0:02:03.6]} 13... Bxd4 {[%clk
0:02:44.2]} 14. Nd5 {[%clk 0:02:02.3]} 14... Ne5 {[%clk 0:02:31]} 15. Rd1 {[%clk
0:01:59.4]} 15... Ba7 {[%clk 0:02:02]} 16. Bh6 {[%clk 0:01:34.3]} 16... Bxg4
{[%clk 0:01:49.6]} 17. Nf6+ {[%clk 0:01:33.3]} 17... Kh8 {[%clk 0:01:48.3]} 18.
Rd5 {[%clk 0:01:33.7]} 18... Be6 {[%clk 0:01:42.7]} 19. Rdd1 {[%clk 0:01:02.4]}
19... Nxc4 {[%clk 0:01:29.9]} 20. Bxf8 {[%clk 0:01:01]} 20... Rxf8 {[%clk
0:01:28.6]} 21. b3 {[%clk 0:00:59.5]} 21... Ne5 {[%clk 0:01:27.6]} 22. Rac1
{[%clk 0:01:00.1]} 22... Bb6 {[%clk 0:01:21.3]} 23. Kf1 {[%clk 0:00:26.7]} 23...
Kg7 {[%clk 0:01:16.1]} 24. Nd5 {[%clk 0:00:27.1]} 24... Bxd5 {[%clk 0:01:16.3]}
25. Rxd5 {[%clk 0:00:28]} 25... Ng4 {[%clk 0:01:12.6]} 26. Rc2 {[%clk 0:00:18]}
26... Re8 {[%clk 0:01:11.4]} 27. Re2 {[%clk 0:00:15.5]} 27... Bc5 {[%clk
0:00:49.2]} 28. Rd1 {[%clk 0:00:09.5]} 28... a5 {[%clk 0:00:41.4]} 29. Bh3
{[%clk 0:00:07.8]} 29... Nf6 {[%clk 0:00:33.3]} 30. f3 {[%clk 0:00:05.9]} 30...
g5 {[%clk 0:00:33.7]} 31. Bf5 {[%clk 0:00:05.3]} 31... h5 {[%clk 0:00:26.6]} 32.
Kg2 {[%clk 0:00:04.9]} 32... b5 {[%clk 0:00:15.4]} 33. f4 {[%clk 0:00:03.8]}
33... gxf4 {[%clk 0:00:13.5]} 34. gxf4 {[%clk 0:00:04.7]} 34... Kh6 {[%clk
0:00:14]} 35. Kf3 {[%clk 0:00:04.7]} 35... a4 {[%clk 0:00:12.2]} 36. e5 {[%clk
0:00:04.9]} 36... dxe5 {[%clk 0:00:10.6]} 37. Rxe5 {[%clk 0:00:05.4]} 37... Rg8
{[%clk 0:00:06.4]} 38. Rxc5 {[%clk 0:00:05.1]} 38... axb3 {[%clk 0:00:05.1]} 39.
axb3 {[%clk 0:00:05.3]} 39... h4 {[%clk 0:00:04.1]} 40. Rc6 {[%clk 0:00:04.3]}
40... Rg3+ {[%clk 0:00:04.8]} 41. Kf2 {[%clk 0:00:04.2]} 41... Kg7 {[%clk
0:00:05.7]} 42. Rg1 {[%clk 0:00:03.6]} 42... Rxg1 {[%clk 0:00:06.3]} 43. Kxg1
{[%clk 0:00:04.5]} 43... Ne8 {[%clk 0:00:06.2]} 44. Bd7 {[%clk 0:00:03.7]} 44...
Nd6 {[%clk 0:00:06.4]} 45. Rxc7 {[%clk 0:00:04.3]} 45... b4 {[%clk 0:00:06.3]}
46. Rc5 {[%clk 0:00:04.4]} 46... Ne4 {[%clk 0:00:05.5]} 47. Rb5 {[%clk
0:00:04.3]} 47... Nc3 {[%clk 0:00:03.1]} 48. Rxb4 {[%clk 0:00:04.6]} 48... Ne2+
{[%clk 0:00:03]} 49. Kf2 {[%clk 0:00:04.7]} 49... Nc3 {[%clk 0:00:02.2]} 50. Rc4
{[%clk 0:00:03.8]} 50... Nd5 {[%clk 0:00:02.8]} 51. Bc6 {[%clk 0:00:03.8]} 51...
Nb6 {[%clk 0:00:03.1]} 52. Rb4 {[%clk 0:00:04.1]} 52... Nc8 {[%clk 0:00:04]} 53.
f5 {[%clk 0:00:04.2]} 53... Nd6 {[%clk 0:00:04.9]} 54. Rxh4 {[%clk 0:00:03.9]}
54... Kf6 {[%clk 0:00:05.8]} 55. Ke2 {[%clk 0:00:02.8]} 55... Ke5 {[%clk
0:00:05.7]} 56. b4 {[%clk 0:00:02.9]} 56... Nxf5 {[%clk 0:00:05.2]} 57. Rh5
{[%clk 0:00:02.5]} 57... Ke6 {[%clk 0:00:03.5]} 58. Kd2 {[%clk 0:00:02.5]} 58...
Nd4 {[%clk 0:00:03.4]} 59. Bd5+ {[%clk 0:00:02.9]} 59... Kd6 {[%clk 0:00:03.4]}
60. Bxf7 {[%clk 0:00:03.1]} 60... Nf3+ {[%clk 0:00:03.8]} 61. Kc3 {[%clk
0:00:03.7]} 61... Kc7 {[%clk 0:00:04.2]} 62. Rc5+ {[%clk 0:00:03.3]} 62... Kb6
{[%clk 0:00:03.9]} 63. Bc4 {[%clk 0:00:03.8]} 63... Nh4 {[%clk 0:00:03.9]} 64.
Kd4 {[%clk 0:00:03.2]} 64... Ng6 {[%clk 0:00:04.8]} 65. b5 {[%clk 0:00:03.4]}
65... Nf4 {[%clk 0:00:05.7]} 66. Rc6+ {[%clk 0:00:03.5]} 66... Kb7 {[%clk
0:00:06.6]} 67. Kc5 {[%clk 0:00:03.3]} 67... Kb8 {[%clk 0:00:06]} 68. b6 {[%clk
0:00:03.2]} 68... Ng2 {[%clk 0:00:05.6]} 69. Rf6 {[%clk 0:00:03.2]} 69... Ne3
{[%clk 0:00:06.2]} 70. Bd5 {[%clk 0:00:03.4]} 70... Kc8 {[%clk 0:00:05.2]} 71.
Bc6 {[%clk 0:00:04]} 71... Kd8 {[%clk 0:00:04.7]} 72. b7 {[%clk 0:00:04.7]}
72... Ke7 {[%clk 0:00:05.6]} 73. b8=Q {[%clk 0:00:04.7]} 73... Nc2 {[%clk
0:00:05.4]} 74. Qd6# {[%clk 0:00:04]} 1-0

[Event "Early-Titled-Tuesday-Blitz-December-26-2023"]
[Site "Chess.com"]
[Date "2023.12.26"]
[Round "1"]
[White "GAO"]
[Black "GasconJR"]
[Result "0-1"]
[WhiteElo "2319"]
[BlackElo "2649"]
[TimeControl "180+1"]
[EndTime "8:08:58 PST"]
[Termination "GasconJR won by resignation"]

1. e4 {[%clk 0:03:00.9]} 1... c5 {[%clk 0:02:59.1]} 2. Nf3 {[%clk 0:02:59.8]}
2... d6 {[%clk 0:02:59.1]} 3. d4 {[%clk 0:02:59.1]} 3... cxd4 {[%clk 0:02:57.5]}
4. Qxd4 {[%clk 0:03:00]} 4... Nc6 {[%clk 0:02:55.6]} 5. Qe3 {[%clk 0:03:00.6]}
5... Nf6 {[%clk 0:02:52.8]} 6. h3 {[%clk 0:03:01]} 6... e5 {[%clk 0:02:48.7]} 7.
Bc4 {[%clk 0:02:58.8]} 7... Be7 {[%clk 0:02:45.9]} 8. O-O {[%clk 0:02:58.2]}
8... O-O {[%clk 0:02:44.9]} 9. Nc3 {[%clk 0:02:57.4]} 9... Be6 {[%clk
0:02:43.3]} 10. Bb3 {[%clk 0:02:52.5]} 10... Na5 {[%clk 0:02:41.3]} 11. Rd1
{[%clk 0:02:51.4]} 11... Qc7 {[%clk 0:02:25.4]} 12. Nd5 {[%clk 0:02:28.5]} 12...
Bxd5 {[%clk 0:02:19.8]} 13. exd5 {[%clk 0:02:27.3]} 13... b5 {[%clk 0:02:10.5]}
14. c3 {[%clk 0:02:19.1]} 14... Nc4 {[%clk 0:02:06.5]} 15. Bxc4 {[%clk
0:02:17.3]} 15... Qxc4 {[%clk 0:02:00.3]} 16. b3 {[%clk 0:02:07.5]} 16... Qe4
{[%clk 0:01:55.1]} 17. Ba3 {[%clk 0:00:59.3]} 17... Qxe3 {[%clk 0:01:48.5]} 18.
fxe3 {[%clk 0:00:59.4]} 18... Rfe8 {[%clk 0:01:15.7]} 19. Rac1 {[%clk
0:00:58.7]} 19... a5 {[%clk 0:01:08.4]} 20. c4 {[%clk 0:00:52.3]} 20... b4
{[%clk 0:01:08.9]} 21. Bb2 {[%clk 0:00:52.7]} 21... Nd7 {[%clk 0:01:09.8]} 22.
Kf2 {[%clk 0:00:37.8]} 22... Bd8 {[%clk 0:01:08.6]} 23. Nd2 {[%clk 0:00:34.4]}
23... Nc5 {[%clk 0:01:03]} 24. Kf3 {[%clk 0:00:34.3]} 24... f5 {[%clk
0:00:59.8]} 25. g4 {[%clk 0:00:32.3]} 25... fxg4+ {[%clk 0:00:56.3]} 26. hxg4
{[%clk 0:00:31]} 26... a4 {[%clk 0:00:38.8]} 27. Ke2 {[%clk 0:00:19.7]} 27...
axb3 {[%clk 0:00:38]} 28. axb3 {[%clk 0:00:20.6]} 28... Ra2 {[%clk 0:00:35.2]}
29. Rc2 {[%clk 0:00:20.1]} 29... Bg5 {[%clk 0:00:29.4]} 30. Nf1 {[%clk 0:00:19]}
30... e4 {[%clk 0:00:26.9]} 31. Rdd2 {[%clk 0:00:17.9]} 31... Nxb3 {[%clk
0:00:24.9]} 32. Bd4 {[%clk 0:00:16.1]} 32... Rxc2 {[%clk 0:00:17.4]} 33. Rxc2
{[%clk 0:00:16.1]} 33... Nxd4+ {[%clk 0:00:16.1]} 34. exd4 {[%clk 0:00:17]}
34... b3 {[%clk 0:00:08.3]} 35. Rb2 {[%clk 0:00:17.3]} 35... Rc8 {[%clk
0:00:07.7]} 36. Ne3 {[%clk 0:00:14.7]} 36... Bxe3 {[%clk 0:00:07.1]} 37. Kxe3
{[%clk 0:00:15.6]} 37... Rxc4 {[%clk 0:00:03.9]} 38. Rxb3 {[%clk 0:00:15.9]}
38... Rc1 {[%clk 0:00:02.7]} 39. Kxe4 {[%clk 0:00:15.9]} 39... Rg1 {[%clk
0:00:02.8]} 40. Kf5 {[%clk 0:00:15.8]} 40... h6 {[%clk 0:00:01.4]} 41. Rb8+
{[%clk 0:00:15.1]} 41... Kh7 {[%clk 0:00:01.8]} 42. Rd8 {[%clk 0:00:13.1]} 42...
Rf1+ {[%clk 0:00:01.7]} 43. Ke6 {[%clk 0:00:13]} 43... Rg1 {[%clk 0:00:01.7]}
44. Kf5 {[%clk 0:00:13.6]} 44... g6+ {[%clk 0:00:01.8]} 45. Kf4 {[%clk
0:00:13.3]} 45... Rf1+ {[%clk 0:00:01.8]} 46. Kg3 {[%clk 0:00:13.2]} 46... Rf6
{[%clk 0:00:01.9]} 47. g5 {[%clk 0:00:10.3]} 47... hxg5 {[%clk 0:00:02.1]} 48.
Kg4 {[%clk 0:00:11]} 48... Rf4+ {[%clk 0:00:02.2]} 49. Kxg5 {[%clk 0:00:10.5]}
49... Rf5+ {[%clk 0:00:02.9]} 50. Kg4 {[%clk 0:00:10.3]} 50... Rxd5 {[%clk
0:00:03.8]} 51. Kf3 {[%clk 0:00:08.4]} 51... Rxd4 {[%clk 0:00:03.5]} 52. Ke3
{[%clk 0:00:09]} 52... Rd1 {[%clk 0:00:03.3]} 53. Ke2 {[%clk 0:00:09.2]} 53...
Rd5 {[%clk 0:00:03.7]} 54. Ke3 {[%clk 0:00:09.7]} 54... Kh6 {[%clk 0:00:04.2]}
55. Ke4 {[%clk 0:00:10.6]} 55... Rd1 {[%clk 0:00:04.5]} 56. Ke3 {[%clk
0:00:10.9]} 56... Kg5 {[%clk 0:00:04.7]} 57. Ke2 {[%clk 0:00:11.2]} 57... Rd5
{[%clk 0:00:05.3]} 58. Ke3 {[%clk 0:00:11.7]} 58... Re5+ {[%clk 0:00:05.6]} 59.
Kf3 {[%clk 0:00:11.9]} 59... Re6 {[%clk 0:00:05.5]} 60. Ra8 {[%clk 0:00:10.4]}
60... Rf6+ {[%clk 0:00:05.4]} 61. Kg3 {[%clk 0:00:10.2]} 61... d5 {[%clk
0:00:04.8]} 62. Ra5 {[%clk 0:00:10.5]} 62... Rd6 {[%clk 0:00:05.1]} 63. Rb5
{[%clk 0:00:10.5]} 63... Kf5 {[%clk 0:00:05.4]} 64. Kf3 {[%clk 0:00:10.2]} 64...
g5 {[%clk 0:00:06]} 65. Ke3 {[%clk 0:00:09.9]} 65... Kg4 {[%clk 0:00:05.6]} 66.
Kd4 {[%clk 0:00:10.2]} 66... Rd8 {[%clk 0:00:05.5]} 67. Rb1 {[%clk 0:00:08.3]}
67... Kh4 {[%clk 0:00:04.5]} 68. Rh1+ {[%clk 0:00:08.3]} 68... Kg3 {[%clk
0:00:04.8]} 69. Rg1+ {[%clk 0:00:09.2]} 69... Kf4 {[%clk 0:00:05.5]} 70. Rf1+
{[%clk 0:00:09.5]} 70... Kg4 {[%clk 0:00:04.1]} 71. Rg1+ {[%clk 0:00:10.2]}
71... Kf5 {[%clk 0:00:04.8]} 72. Rf1+ {[%clk 0:00:10.5]} 72... Kg6 {[%clk
0:00:05.5]} 73. Rf2 {[%clk 0:00:09.7]} 73... g4 {[%clk 0:00:05.7]} 74. Rg2
{[%clk 0:00:10.2]} 74... Kg5 {[%clk 0:00:06.2]} 75. Rg1 {[%clk 0:00:10.8]} 75...
Kf4 {[%clk 0:00:06.6]} 76. Rf1+ {[%clk 0:00:10.8]} 76... Kg3 {[%clk 0:00:07.4]}
77. Rf7 {[%clk 0:00:10.9]} 77... Kg2 {[%clk 0:00:07.2]} 78. Rf6 {[%clk
0:00:10.4]} 78... g3 {[%clk 0:00:07.3]} 79. Rf7 {[%clk 0:00:10.9]} 79... Kh2
{[%clk 0:00:07.4]} 80. Rh7+ {[%clk 0:00:11.1]} 80... Kg1 {[%clk 0:00:07.5]} 81.
Rg7 {[%clk 0:00:11.5]} 81... g2 {[%clk 0:00:07.9]} 82. Rg6 {[%clk 0:00:11.4]}
82... Rf8 {[%clk 0:00:06.8]} 83. Kxd5 {[%clk 0:00:10.9]} 83... Kf2 {[%clk
0:00:06.8]} 0-1

[Event "Early-Titled-Tuesday-Blitz-December-26-2023"]
[Site "Chess.com"]
[Date "2023.12.26"]
[Round "2"]
[White "ketster"]
[Black "alvarorodriguezavila"]
[Result "1-0"]
[WhiteElo "2541"]
[BlackElo "2286"]
[TimeControl "180+1"]
[EndTime "8:13:33 PST"]
[Termination "ketster won by resignation"]

1. e4 {[%clk 0:03:00.9]} 1... c5 {[%clk 0:02:58.2]} 2. a3 {[%clk 0:03:00.2]}
2... g6 {[%clk 0:02:57.4]} 3. b4 {[%clk 0:02:59.7]} 3... Bg7 {[%clk 0:02:57.6]}
4. Nc3 {[%clk 0:02:59.4]} 4... cxb4 {[%clk 0:02:43.7]} 5. axb4 {[%clk
0:02:59.2]} 5... Nc6 {[%clk 0:02:44.3]} 6. b5 {[%clk 0:02:58.8]} 6... Nd4 {[%clk
0:02:44.4]} 7. Bc4 {[%clk 0:02:56.8]} 7... d6 {[%clk 0:02:40]} 8. Nge2 {[%clk
0:02:54.8]} 8... Bg4 {[%clk 0:02:30.6]} 9. f3 {[%clk 0:02:52]} 9... Bd7 {[%clk
0:02:30.5]} 10. O-O {[%clk 0:02:46.1]} 10... e6 {[%clk 0:02:08.8]} 11. Kh1
{[%clk 0:02:41.3]} 11... Ne7 {[%clk 0:02:07.6]} 12. Ba3 {[%clk 0:02:41]} 12...
Qc7 {[%clk 0:02:05.3]} 13. d3 {[%clk 0:02:33.4]} 13... Nxe2 {[%clk 0:02:01.2]}
14. Nxe2 {[%clk 0:02:34.3]} 14... Bxa1 {[%clk 0:02:00.5]} 15. Qxa1 {[%clk
0:02:35.2]} 15... O-O {[%clk 0:01:42.3]} 16. Qf6 {[%clk 0:02:34.5]} 16... e5
{[%clk 0:01:33.4]} 17. Qxe7 {[%clk 0:02:32.2]} 17... Be6 {[%clk 0:00:34.7]} 18.
Qxc7 {[%clk 0:02:30.7]} 1-0

[Event "Early-Titled-Tuesday-Blitz-December-26-2023"]
[Site "Chess.com"]
[Date "2023.12.26"]
[Round "2"]
[White "Agent-JL"]
[Black "le-castor-faineant"]
[Result "1-0"]
[WhiteElo "2529"]
[BlackElo "2273"]
[TimeControl "180+1"]
[EndTime "8:13:43 PST"]
[Termination "Agent-JL won by resignation"]

1. e4 {[%clk 0:02:55.9]} 1... e5 {[%clk 0:03:00]} 2. Nf3 {[%clk 0:02:55.4]} 2...
Nf6 {[%clk 0:02:59.9]} 3. Nc3 {[%clk 0:02:54.9]} 3... Nc6 {[%clk 0:02:58.4]} 4.
d3 {[%clk 0:02:51.8]} 4... Bc5 {[%clk 0:02:55.9]} 5. Be3 {[%clk 0:02:46.6]} 5...
Bxe3 {[%clk 0:02:54.1]} 6. fxe3 {[%clk 0:02:47.5]} 6... O-O {[%clk 0:02:54.2]}
7. Be2 {[%clk 0:02:39.3]} 7... d5 {[%clk 0:02:53]} 8. O-O {[%clk 0:02:29.5]}
8... dxe4 {[%clk 0:02:52]} 9. dxe4 {[%clk 0:02:27.5]} 9... Qxd1 {[%clk
0:02:49.2]} 10. Raxd1 {[%clk 0:02:28.4]} 10... Be6 {[%clk 0:02:48.3]} 11. Bb5
{[%clk 0:02:11.9]} 11... Na5 {[%clk 0:02:33.2]} 12. Nxe5 {[%clk 0:02:07.1]}
12... c6 {[%clk 0:02:32.5]} 13. Be2 {[%clk 0:02:06.1]} 13... Rfe8 {[%clk
0:02:30.4]} 14. Bd3 {[%clk 0:01:22.8]} 14... Bxa2 {[%clk 0:02:16.2]} 15. Nxa2
{[%clk 0:01:03.9]} 15... Rxe5 {[%clk 0:02:14.9]} 16. b4 {[%clk 0:00:59.9]} 16...
Nxe4 {[%clk 0:02:08.3]} 17. bxa5 {[%clk 0:00:56.8]} 17... Rxa5 {[%clk
0:02:06.2]} 18. Bxe4 {[%clk 0:00:54.4]} 18... Rxa2 {[%clk 0:02:05.6]} 19. Rd7
{[%clk 0:00:55.1]} 1-0